[Event "Live Chess"]
[Site "Chess.com"]
[Date "2010.12.06"]
[Round "-"]
[White "hipposcottimus"]
[Black "JeeBusSS"]
[Result "1-0"]
[CurrentPosition "1B6/8/8/7k/1p6/1K6/6R1/7R b - -"]
[Timezone "UTC"]
[ECO "B07"]
[ECOUrl "https://www.chess.com/openings/Pirc-Defense-Maroczy-Defense-3.dxe5-dxe5-4.Qxd8-Kxd8"]
[UTCDate "2010.12.06"]
[UTCTime "23:26:28"]
[WhiteElo "1661"]
[BlackElo "1480"]
[TimeControl "60"]
[Termination "hipposcottimus won by checkmate"]
[StartTime "23:26:28"]
[EndDate "2010.12.06"]
[EndTime "23:28:46"]
[Link "https://www.chess.com/game/live/74747922"]

1. e4 {[%clk 0:01:00]} 1... d6 {[%clk 0:01:00]} 2. d4 {[%clk 0:00:58.3]} 2... e5 {[%clk 0:00:59.7]} 3. dxe5 {[%clk 0:00:57]} 3... dxe5 {[%clk 0:00:59.4]} 4. Qxd8+ {[%clk 0:00:56.7]} 4... Kxd8 {[%clk 0:00:58.3]} 5. Nf3 {[%clk 0:00:56.4]} 5... Bd7 {[%clk 0:00:57.8]} 6. Nxe5 {[%clk 0:00:55.6]} 6... f6 {[%clk 0:00:57.5]} 7. Nf7+ {[%clk 0:00:54.8]} 7... Ke7 {[%clk 0:00:55.6]} 8. Nxh8 {[%clk 0:00:54.1]} 8... Nh6 {[%clk 0:00:55.2]} 9. Bc4 {[%clk 0:00:53.5]} 9... g6 {[%clk 0:00:53.5]} 10. Nc3 {[%clk 0:00:53.1]} 10... Bg7 {[%clk 0:00:53.1]} 11. Bxh6 {[%clk 0:00:52.4]} 11... Bxh8 {[%clk 0:00:52.5]} 12. O-O-O {[%clk 0:00:49.7]} 12... Be6 {[%clk 0:00:50]} 13. Nd5+ {[%clk 0:00:49.3]} 13... Bxd5 {[%clk 0:00:49.2]} 14. Bxd5 {[%clk 0:00:49]} 14... c6 {[%clk 0:00:48.9]} 15. Bc4 {[%clk 0:00:47.9]} 15... b5 {[%clk 0:00:45.6]} 16. Bb3 {[%clk 0:00:47.6]} 16... c5 {[%clk 0:00:44.6]} 17. c3 {[%clk 0:00:46.1]} 17... c4 {[%clk 0:00:44]} 18. Bc2 {[%clk 0:00:45.8]} 18... a5 {[%clk 0:00:42.8]} 19. b3 {[%clk 0:00:44.1]} 19... b4 {[%clk 0:00:42.2]} 20. cxb4 {[%clk 0:00:41.9]} 20... axb4 {[%clk 0:00:41.5]} 21. Bd2 {[%clk 0:00:36.5]} 21... Rxa2 {[%clk 0:00:40.8]} 22. Kb1 {[%clk 0:00:33.8]} 22... cxb3 {[%clk 0:00:39.6]} 23. Bxb3 {[%clk 0:00:32]} 23... Ra5 {[%clk 0:00:37.4]} 24. Kb2 {[%clk 0:00:31.1]} 24... Rb5 {[%clk 0:00:36]} 25. Kc2 {[%clk 0:00:30.5]} 25... Nc6 {[%clk 0:00:35.4]} 26. Be3 {[%clk 0:00:29.5]} 26... Na5 {[%clk 0:00:33.3]} 27. Rhe1 {[%clk 0:00:28.8]} 27... Rb8 {[%clk 0:00:28.2]} 28. Rc1 {[%clk 0:00:27.5]} 28... Nxb3 {[%clk 0:00:26]} 29. Kxb3 {[%clk 0:00:26.8]} 29... f5 {[%clk 0:00:24.6]} 30. Bc5+ {[%clk 0:00:26.2]} 30... Kf7 {[%clk 0:00:23.3]} 31. exf5 {[%clk 0:00:25.7]} 31... gxf5 {[%clk 0:00:22.5]} 32. Re7+ {[%clk 0:00:25.3]} 32... Kf6 {[%clk 0:00:21.1]} 33. Rce1 {[%clk 0:00:22.8]} 33... Kg5 {[%clk 0:00:19.1]} 34. h4+ {[%clk 0:00:22.4]} 34... Kxh4 {[%clk 0:00:17.8]} 35. g3+ {[%clk 0:00:21]} 35... Kh3 {[%clk 0:00:17]} 36. f3 {[%clk 0:00:19.6]} 36... Kxg3 {[%clk 0:00:16.2]} 37. f4 {[%clk 0:00:18.6]} 37... Kxf4 {[%clk 0:00:15.6]} 38. Bd6+ {[%clk 0:00:17.4]} 38... Be5 {[%clk 0:00:11.2]} 39. Bxe5+ {[%clk 0:00:13.7]} 39... Kf3 {[%clk 0:00:07.6]} 40. Bxb8 {[%clk 0:00:13.3]} 40... h5 {[%clk 0:00:07]} 41. Rf7 {[%clk 0:00:11.8]} 41... h4 {[%clk 0:00:06.7]} 42. Rxf5+ {[%clk 0:00:10.4]} 42... Kg4 {[%clk 0:00:06.4]} 43. Ref1 {[%clk 0:00:09.2]} 43... h3 {[%clk 0:00:05.2]} 44. R5f2 {[%clk 0:00:08.7]} 44... h2 {[%clk 0:00:02.4]} 45. Rxh2 {[%clk 0:00:07.5]} 45... Kg5 {[%clk 0:00:01.5]} 46. Rg2+ {[%clk 0:00:05.4]} 46... Kh5 {[%clk 0:00:00.4]} 47. Rh1# {[%clk 0:00:05.1]} 1-0

[Event "Live Chess"]
[Site "Chess.com"]
[Date "2010.12.06"]
[Round "-"]
[White "JeeBusSS"]
[Black "hipposcottimus"]
[Result "0-1"]
[CurrentPosition "r3k2r/ppp2ppp/3nbq2/1P1K4/4n1P1/2PBP2P/P7/RNBQ3R w kq -"]
[Timezone "UTC"]
[ECO "A03"]
[ECOUrl "https://www.chess.com/openings/Birds-Opening-Dutch-Variation"]
[UTCDate "2010.12.06"]
[UTCTime "23:24:48"]
[WhiteElo "1484"]
[BlackElo "1657"]
[TimeControl "60"]
[Termination "hipposcottimus won by checkmate"]
[StartTime "23:24:48"]
[EndDate "2010.12.06"]
[EndTime "23:25:36"]
[Link "https://www.chess.com/game/live/74747617"]

1. f4 {[%clk 0:01:00]} 1... d5 {[%clk 0:01:00]} 2. h3 {[%clk 0:00:59.6]} 2... Nc6 {[%clk 0:00:57.2]} 3. g4 {[%clk 0:00:59.3]} 3... e5 {[%clk 0:00:56.1]} 4. c3 {[%clk 0:00:58.9]} 4... exf4 {[%clk 0:00:55]} 5. e3 {[%clk 0:00:58.2]} 5... fxe3 {[%clk 0:00:53.1]} 6. dxe3 {[%clk 0:00:57.9]} 6... Be7 {[%clk 0:00:51.8]} 7. b4 {[%clk 0:00:57.5]} 7... Bh4+ {[%clk 0:00:51.4]} 8. Ke2 {[%clk 0:00:55.9]} 8... Nf6 {[%clk 0:00:51.1]} 9. b5 {[%clk 0:00:55.5]} 9... Ne5 {[%clk 0:00:48.1]} 10. Nf3 {[%clk 0:00:55.3]} 10... Nc4 {[%clk 0:00:47.4]} 11. Nxh4 {[%clk 0:00:54.1]} 11... Ne4 {[%clk 0:00:45.8]} 12. Kd3 {[%clk 0:00:53]} 12... Qxh4 {[%clk 0:00:43.3]} 13. Kd4 {[%clk 0:00:51.9]} 13... Qf6+ {[%clk 0:00:40.6]} 14. Kxd5 {[%clk 0:00:50.9]} 14... Ncd6 {[%clk 0:00:37.3]} 15. Bd3 {[%clk 0:00:46.4]} 15... Be6# {[%clk 0:00:34]} 0-1

[Event "Live Chess"]
[Site "Chess.com"]
[Date "2010.12.06"]
[Round "-"]
[White "hipposcottimus"]
[Black "JeeBusSS"]
[Result "1/2-1/2"]
[CurrentPosition "k7/P6R/8/3N4/8/4B3/5PPP/6K1 b - -"]
[Timezone "UTC"]
[ECO "B07"]
[ECOUrl "https://www.chess.com/openings/Pirc-Defense-Maroczy-Defense"]
[UTCDate "2010.12.06"]
[UTCTime "23:22:21"]
[WhiteElo "1653"]
[BlackElo "1488"]
[TimeControl "60"]
[Termination "Game drawn by stalemate"]
[StartTime "23:22:21"]
[EndDate "2010.12.06"]
[EndTime "23:24:20"]
[Link "https://www.chess.com/game/live/74746965"]

1. e4 {[%clk 0:01:00]} 1... e5 {[%clk 0:01:00]} 2. d4 {[%clk 0:00:58.7]} 2... d6 {[%clk 0:00:59.7]} 3. dxe5 {[%clk 0:00:57.7]} 3... dxe5 {[%clk 0:00:59.2]} 4. Qxd8+ {[%clk 0:00:56.6]} 4... Kxd8 {[%clk 0:00:57.6]} 5. Nf3 {[%clk 0:00:56.3]} 5... g6 {[%clk 0:00:57.3]} 6. Nxe5 {[%clk 0:00:55.4]} 6... f6 {[%clk 0:00:56.9]} 7. Nf7+ {[%clk 0:00:54.6]} 7... Ke8 {[%clk 0:00:54.7]} 8. Nxh8 {[%clk 0:00:54.2]} 8... Bb4+ {[%clk 0:00:54]} 9. c3 {[%clk 0:00:52.5]} 9... Bc5 {[%clk 0:00:53.2]} 10. Bb5+ {[%clk 0:00:51.8]} 10... c6 {[%clk 0:00:52.1]} 11. Ba4 {[%clk 0:00:51.5]} 11... f5 {[%clk 0:00:51.7]} 12. O-O {[%clk 0:00:51]} 12... b5 {[%clk 0:00:51]} 13. Re1 {[%clk 0:00:50.4]} 13... bxa4 {[%clk 0:00:49.9]} 14. exf5+ {[%clk 0:00:50.1]} 14... Ne7 {[%clk 0:00:46.6]} 15. fxg6 {[%clk 0:00:49.7]} 15... a3 {[%clk 0:00:44.8]} 16. gxh7 {[%clk 0:00:48.6]} 16... axb2 {[%clk 0:00:43.1]} 17. Bxb2 {[%clk 0:00:48.3]} 17... a5 {[%clk 0:00:42]} 18. Ng6 {[%clk 0:00:47.9]} 18... Bd4 {[%clk 0:00:36.4]} 19. cxd4 {[%clk 0:00:45.1]} 19... Kf7 {[%clk 0:00:33]} 20. Nxe7 {[%clk 0:00:41.6]} 20... Kg7 {[%clk 0:00:29.8]} 21. h8=Q+ {[%clk 0:00:36.2]} 21... Kxh8 {[%clk 0:00:28.8]} 22. d5+ {[%clk 0:00:35.9]} 22... Kh7 {[%clk 0:00:25.1]} 23. dxc6 {[%clk 0:00:35.5]} 23... Nxc6 {[%clk 0:00:23.8]} 24. Nxc6 {[%clk 0:00:34]} 24... Ra6 {[%clk 0:00:23.3]} 25. Ne7 {[%clk 0:00:30.9]} 25... Bd7 {[%clk 0:00:22]} 26. Nc3 {[%clk 0:00:29.8]} 26... Re6 {[%clk 0:00:21.1]} 27. Ncd5 {[%clk 0:00:28.7]} 27... Rxe1+ {[%clk 0:00:19.7]} 28. Rxe1 {[%clk 0:00:28.5]} 28... Bc6 {[%clk 0:00:19.1]} 29. Re6 {[%clk 0:00:25.4]} 29... Bxd5 {[%clk 0:00:18.3]} 30. Nxd5 {[%clk 0:00:25.1]} 30... Kg8 {[%clk 0:00:14.4]} 31. Ra6 {[%clk 0:00:24.7]} 31... Kf7 {[%clk 0:00:13.7]} 32. Ra7+ {[%clk 0:00:24.4]} 32... Ke8 {[%clk 0:00:12.6]} 33. Ra6 {[%clk 0:00:24.1]} 33... Kd7 {[%clk 0:00:12.2]} 34. Rh6 {[%clk 0:00:23.8]} 34... Kc8 {[%clk 0:00:11]} 35. Bc3 {[%clk 0:00:22.4]} 35... Kd7 {[%clk 0:00:10.5]} 36. Bxa5 {[%clk 0:00:20.7]} 36... Kc8 {[%clk 0:00:09.9]} 37. Bd2 {[%clk 0:00:20.3]} 37... Kd7 {[%clk 0:00:09.6]} 38. a4 {[%clk 0:00:19.9]} 38... Kc8 {[%clk 0:00:09.3]} 39. a5 {[%clk 0:00:19.6]} 39... Kb7 {[%clk 0:00:09]} 40. a6+ {[%clk 0:00:19.1]} 40... Ka8 {[%clk 0:00:08.7]} 41. Be3 {[%clk 0:00:16.9]} 41... Kb8 {[%clk 0:00:07.5]} 42. Rh7 {[%clk 0:00:16.4]} 42... Ka8 {[%clk 0:00:06.9]} 43. a7 {[%clk 0:00:15.7]} 1/2-1/2

[Event "Live Chess"]
[Site "Chess.com"]
[Date "2010.12.06"]
[Round "-"]
[White "JeeBusSS"]
[Black "hipposcottimus"]
[Result "0-1"]
[CurrentPosition "1k1r1b1r/pp3ppp/8/1P1q1b2/2K5/P7/3N4/R2n4 w - -"]
[Timezone "UTC"]
[ECO "A00"]
[ECOUrl "https://www.chess.com/openings/Saragossa-Opening"]
[UTCDate "2010.12.06"]
[UTCTime "23:20:03"]
[WhiteElo "1484"]
[BlackElo "1657"]
[TimeControl "60"]
[Termination "hipposcottimus won by checkmate"]
[StartTime "23:20:03"]
[EndDate "2010.12.06"]
[EndTime "23:21:52"]
[Link "https://www.chess.com/game/live/74746407"]

1. c3 {[%clk 0:01:00]} 1... c5 {[%clk 0:01:00]} 2. d4 {[%clk 0:00:59.7]} 2... cxd4 {[%clk 0:00:59.1]} 3. cxd4 {[%clk 0:00:59.4]} 3... d5 {[%clk 0:00:58.2]} 4. a3 {[%clk 0:00:59.1]} 4... Nc6 {[%clk 0:00:57.9]} 5. b4 {[%clk 0:00:58.6]} 5... e5 {[%clk 0:00:57.5]} 6. b5 {[%clk 0:00:58.3]} 6... Nxd4 {[%clk 0:00:56.6]} 7. e3 {[%clk 0:00:57.2]} 7... Ne6 {[%clk 0:00:50.6]} 8. f4 {[%clk 0:00:52.4]} 8... e4 {[%clk 0:00:49.2]} 9. f5 {[%clk 0:00:51.6]} 9... Ng5 {[%clk 0:00:48]} 10. h4 {[%clk 0:00:50.4]} 10... Bxf5 {[%clk 0:00:44.5]} 11. hxg5 {[%clk 0:00:48.4]} 11... Qxg5 {[%clk 0:00:44.2]} 12. Be2 {[%clk 0:00:46.1]} 12... Qg3+ {[%clk 0:00:42.7]} 13. Kd2 {[%clk 0:00:41.8]} 13... O-O-O {[%clk 0:00:42.2]} 14. Rh3 {[%clk 0:00:40.5]} 14... Qd6 {[%clk 0:00:39.9]} 15. Rh1 {[%clk 0:00:37.6]} 15... Kb8 {[%clk 0:00:38.7]} 16. g3 {[%clk 0:00:36.7]} 16... Rc8 {[%clk 0:00:37.9]} 17. Rh2 {[%clk 0:00:35]} 17... Qxg3 {[%clk 0:00:36.3]} 18. Rh1 {[%clk 0:00:30.1]} 18... Nf6 {[%clk 0:00:34]} 19. Bb2 {[%clk 0:00:27.9]} 19... Ng4 {[%clk 0:00:32]} 20. Be5+ {[%clk 0:00:26.9]} 20... Nxe5 {[%clk 0:00:30.2]} 21. Bf3 {[%clk 0:00:24.6]} 21... Nc4+ {[%clk 0:00:29.1]} 22. Kc3 {[%clk 0:00:22.8]} 22... exf3 {[%clk 0:00:27.7]} 23. Nxf3 {[%clk 0:00:22.2]} 23... Nxe3+ {[%clk 0:00:23.9]} 24. Kd4 {[%clk 0:00:21]} 24... Nxd1 {[%clk 0:00:23]} 25. Kxd5 {[%clk 0:00:20.6]} 25... Qxf3+ {[%clk 0:00:21.9]} 26. Kd4 {[%clk 0:00:18.9]} 26... Qxh1 {[%clk 0:00:21.5]} 27. Nd2 {[%clk 0:00:17.7]} 27... Rd8+ {[%clk 0:00:13.7]} 28. Kc4 {[%clk 0:00:13.7]} 28... Qd5# {[%clk 0:00:11.7]} 0-1

[Event "Live Chess"]
[Site "Chess.com"]
[Date "2010.12.06"]
[Round "-"]
[White "hipposcottimus"]
[Black "JeeBusSS"]
[Result "1-0"]
[CurrentPosition "r2k4/4QB2/p7/3p1P2/1p6/8/Pq3P1P/R3RK2 b - -"]
[Timezone "UTC"]
[ECO "C41"]
[ECOUrl "https://www.chess.com/openings/Philidor-Defense"]
[UTCDate "2010.12.06"]
[UTCTime "23:17:30"]
[WhiteElo "1653"]
[BlackElo "1488"]
[TimeControl "60"]
[Termination "hipposcottimus won on time"]
[StartTime "23:17:30"]
[EndDate "2010.12.06"]
[EndTime "23:19:34"]
[Link "https://www.chess.com/game/live/74745778"]

1. e4 {[%clk 0:01:00]} 1... d6 {[%clk 0:01:00]} 2. Nf3 {[%clk 0:00:59.7]} 2... e5 {[%clk 0:00:59.6]} 3. d4 {[%clk 0:00:58.8]} 3... f6 {[%clk 0:00:59.3]} 4. dxe5 {[%clk 0:00:57.4]} 4... g5 {[%clk 0:00:59]} 5. exd6 {[%clk 0:00:51.7]} 5... g4 {[%clk 0:00:58.7]} 6. Nd4 {[%clk 0:00:49.6]} 6... cxd6 {[%clk 0:00:57.5]} 7. Nf5 {[%clk 0:00:49.3]} 7... Bxf5 {[%clk 0:00:55.7]} 8. exf5 {[%clk 0:00:49.1]} 8... h6 {[%clk 0:00:54.5]} 9. Be2 {[%clk 0:00:48.8]} 9... Qe7 {[%clk 0:00:53.4]} 10. O-O {[%clk 0:00:45.9]} 10... Qe5 {[%clk 0:00:52.4]} 11. Bxg4 {[%clk 0:00:44.3]} 11... Ne7 {[%clk 0:00:50.3]} 12. Re1 {[%clk 0:00:44]} 12... Qa5 {[%clk 0:00:46.9]} 13. Bd2 {[%clk 0:00:39.8]} 13... Qc7 {[%clk 0:00:45.1]} 14. Nc3 {[%clk 0:00:39]} 14... a6 {[%clk 0:00:41.9]} 15. Bh5+ {[%clk 0:00:38.2]} 15... Kd8 {[%clk 0:00:39.8]} 16. Qe2 {[%clk 0:00:35.5]} 16... b5 {[%clk 0:00:39.2]} 17. Qe6 {[%clk 0:00:34.1]} 17... Qd7 {[%clk 0:00:36.3]} 18. Qf7 {[%clk 0:00:33.3]} 18... b4 {[%clk 0:00:33]} 19. Ne4 {[%clk 0:00:30.5]} 19... d5 {[%clk 0:00:31.9]} 20. Nc5 {[%clk 0:00:29.1]} 20... Qc6 {[%clk 0:00:29.2]} 21. Ne6+ {[%clk 0:00:28.1]} 21... Kd7 {[%clk 0:00:25.9]} 22. Nd4 {[%clk 0:00:25]} 22... Qc4 {[%clk 0:00:23.3]} 23. Qe6+ {[%clk 0:00:22.1]} 23... Kd8 {[%clk 0:00:20.5]} 24. Nc6+ {[%clk 0:00:19.5]} 24... Nbxc6 {[%clk 0:00:18.9]} 25. Qxf6 {[%clk 0:00:17.9]} 25... Rg8 {[%clk 0:00:16]} 26. Bf7 {[%clk 0:00:17.3]} 26... Rg7 {[%clk 0:00:12.2]} 27. Bxh6 {[%clk 0:00:16.2]} 27... Rxg2+ {[%clk 0:00:07.6]} 28. Kxg2 {[%clk 0:00:14]} 28... Qe4+ {[%clk 0:00:06.2]} 29. Kf1 {[%clk 0:00:13]} 29... Qxc2 {[%clk 0:00:04]} 30. Bxf8 {[%clk 0:00:11.1]} 30... Qxb2 {[%clk 0:00:03.3]} 31. Bxe7+ {[%clk 0:00:10.3]} 31... Nxe7 {[%clk 0:00:02.6]} 32. Qxe7+ {[%clk 0:00:09.8]} 1-0

[Event "Live Chess"]
[Site "Chess.com"]
[Date "2010.12.06"]
[Round "-"]
[White "JeeBusSS"]
[Black "hipposcottimus"]
[Result "0-1"]
[CurrentPosition "1k2r3/pp4pp/2p5/2K5/2P5/N4n2/P7/R7 w - -"]
[Timezone "UTC"]
[ECO "A02"]
[ECOUrl "https://www.chess.com/openings/Birds-Opening"]
[UTCDate "2010.12.06"]
[UTCTime "23:15:02"]
[WhiteElo "1493"]
[BlackElo "1648"]
[TimeControl "60"]
[Termination "hipposcottimus won on time"]
[StartTime "23:15:02"]
[EndDate "2010.12.06"]
[EndTime "23:17:10"]
[Link "https://www.chess.com/game/live/74745099"]

1. f4 {[%clk 0:01:00]} 1... e6 {[%clk 0:01:00]} 2. Nf3 {[%clk 0:00:59.7]} 2... d5 {[%clk 0:00:58.9]} 3. e3 {[%clk 0:00:59.4]} 3... Be7 {[%clk 0:00:58.4]} 4. d4 {[%clk 0:00:58.9]} 4... Bh4+ {[%clk 0:00:57.4]} 5. g3 {[%clk 0:00:57.7]} 5... Be7 {[%clk 0:00:56.2]} 6. c3 {[%clk 0:00:57.2]} 6... Bd6 {[%clk 0:00:55.8]} 7. b4 {[%clk 0:00:56.6]} 7... f6 {[%clk 0:00:54.3]} 8. g4 {[%clk 0:00:55]} 8... e5 {[%clk 0:00:54]} 9. dxe5 {[%clk 0:00:52.4]} 9... fxe5 {[%clk 0:00:53.6]} 10. fxe5 {[%clk 0:00:51.8]} 10... Be7 {[%clk 0:00:52.9]} 11. g5 {[%clk 0:00:49.3]} 11... Bxg5 {[%clk 0:00:50.4]} 12. Nxg5 {[%clk 0:00:47.9]} 12... Qxg5 {[%clk 0:00:50.1]} 13. e4 {[%clk 0:00:45.7]} 13... Qh4+ {[%clk 0:00:49.8]} 14. Ke2 {[%clk 0:00:43.5]} 14... Qxe4+ {[%clk 0:00:49.2]} 15. Kd2 {[%clk 0:00:35.4]} 15... Nc6 {[%clk 0:00:43.6]} 16. Rg1 {[%clk 0:00:33.2]} 16... Nxb4 {[%clk 0:00:39.7]} 17. Rg4 {[%clk 0:00:31.2]} 17... Bxg4 {[%clk 0:00:35.4]} 18. Qe1 {[%clk 0:00:28.4]} 18... Qf4+ {[%clk 0:00:30.6]} 19. Qe3 {[%clk 0:00:21.3]} 19... Qxh2+ {[%clk 0:00:30.2]} 20. Be2 {[%clk 0:00:19.6]} 20... Bxe2 {[%clk 0:00:28.6]} 21. Qxe2 {[%clk 0:00:19.1]} 21... Qf4+ {[%clk 0:00:27.2]} 22. Ke1 {[%clk 0:00:17.5]} 22... O-O-O {[%clk 0:00:23.5]} 23. Bxf4 {[%clk 0:00:15.8]} 23... Re8 {[%clk 0:00:22.7]} 24. Qf2 {[%clk 0:00:14.2]} 24... Nc6 {[%clk 0:00:19.4]} 25. Qf3 {[%clk 0:00:13.1]} 25... Nxe5 {[%clk 0:00:18.5]} 26. Bxe5 {[%clk 0:00:10.9]} 26... Rxe5+ {[%clk 0:00:18.1]} 27. Kf2 {[%clk 0:00:10.5]} 27... Nf6 {[%clk 0:00:17.1]} 28. Qh3+ {[%clk 0:00:08.6]} 28... Kb8 {[%clk 0:00:15]} 29. Na3 {[%clk 0:00:07]} 29... Ne4+ {[%clk 0:00:14]} 30. Ke3 {[%clk 0:00:05.4]} 30... Ng5+ {[%clk 0:00:11.3]} 31. Kd4 {[%clk 0:00:04.8]} 31... Nxh3 {[%clk 0:00:10.3]} 32. Kxe5 {[%clk 0:00:04.5]} 32... Re8+ {[%clk 0:00:09.7]} 33. Kxd5 {[%clk 0:00:04]} 33... Ng5 {[%clk 0:00:09.1]} 34. c4 {[%clk 0:00:02.9]} 34... c6+ {[%clk 0:00:08.8]} 35. Kc5 {[%clk 0:00:01.9]} 35... Nf3 {[%clk 0:00:08.5]} 0-1

[Event "Live Chess"]
[Site "Chess.com"]
[Date "2010.12.06"]
[Round "-"]
[White "hipposcottimus"]
[Black "JeeBusSS"]
[Result "1-0"]
[CurrentPosition "r6r/p5Qk/2n2B1n/1pb1P3/3p4/8/PPP3P1/RN3R1K b - -"]
[Timezone "UTC"]
[ECO "B12"]
[ECOUrl "https://www.chess.com/openings/Caro-Kann-Defense-Advance-Variation"]
[UTCDate "2010.12.06"]
[UTCTime "23:13:08"]
[WhiteElo "1643"]
[BlackElo "1498"]
[TimeControl "60"]
[Termination "hipposcottimus won by checkmate"]
[StartTime "23:13:08"]
[EndDate "2010.12.06"]
[EndTime "23:14:28"]
[Link "https://www.chess.com/game/live/74744698"]

1. e4 {[%clk 0:01:00]} 1... c6 {[%clk 0:01:00]} 2. d4 {[%clk 0:00:59.5]} 2... d5 {[%clk 0:00:59.6]} 3. e5 {[%clk 0:00:59.2]} 3... b5 {[%clk 0:00:58.2]} 4. f4 {[%clk 0:00:58.9]} 4... f6 {[%clk 0:00:57.7]} 5. Nf3 {[%clk 0:00:56.6]} 5... g5 {[%clk 0:00:56.6]} 6. fxg5 {[%clk 0:00:55.1]} 6... fxg5 {[%clk 0:00:56]} 7. Bxg5 {[%clk 0:00:53.7]} 7... h6 {[%clk 0:00:53.1]} 8. Bh4 {[%clk 0:00:51.8]} 8... e6 {[%clk 0:00:51.2]} 9. Bd3 {[%clk 0:00:49.5]} 9... Qd7 {[%clk 0:00:49.7]} 10. Bg6+ {[%clk 0:00:48.4]} 10... Qf7 {[%clk 0:00:42.6]} 11. Bxf7+ {[%clk 0:00:47.4]} 11... Kxf7 {[%clk 0:00:42.3]} 12. O-O {[%clk 0:00:45.7]} 12... c5 {[%clk 0:00:41.6]} 13. Ng5+ {[%clk 0:00:45.2]} 13... Kg6 {[%clk 0:00:40.5]} 14. Nxe6 {[%clk 0:00:44.2]} 14... Bxe6 {[%clk 0:00:37.2]} 15. dxc5 {[%clk 0:00:43.5]} 15... h5 {[%clk 0:00:36.3]} 16. Qf3 {[%clk 0:00:39.9]} 16... Bg4 {[%clk 0:00:35.9]} 17. Qg3 {[%clk 0:00:38.6]} 17... Bxc5+ {[%clk 0:00:33]} 18. Kh1 {[%clk 0:00:37]} 18... d4 {[%clk 0:00:29.5]} 19. h3 {[%clk 0:00:36.5]} 19... Nc6 {[%clk 0:00:24.6]} 20. hxg4 {[%clk 0:00:36]} 20... hxg4 {[%clk 0:00:24]} 21. Qxg4+ {[%clk 0:00:35.2]} 21... Kh7 {[%clk 0:00:22.9]} 22. Bf6 {[%clk 0:00:32]} 22... Nh6 {[%clk 0:00:21.3]} 23. Qg7# {[%clk 0:00:30.5]} 1-0

[Event "Live Chess"]
[Site "Chess.com"]
[Date "2010.12.06"]
[Round "-"]
[White "JeeBusSS"]
[Black "hipposcottimus"]
[Result "0-1"]
[CurrentPosition "8/1p3p2/4r1k1/8/1p2K1p1/8/P7/6R1 w - -"]
[Timezone "UTC"]
[ECO "A00"]
[ECOUrl "https://www.chess.com/openings/Saragossa-Opening-1...e5"]
[UTCDate "2010.12.06"]
[UTCTime "23:10:46"]
[WhiteElo "1503"]
[BlackElo "1638"]
[TimeControl "60"]
[Termination "hipposcottimus won on time"]
[StartTime "23:10:46"]
[EndDate "2010.12.06"]
[EndTime "23:12:50"]
[Link "https://www.chess.com/game/live/74744031"]

1. c3 {[%clk 0:01:00]} 1... e5 {[%clk 0:01:00]} 2. d4 {[%clk 0:00:59.7]} 2... e4 {[%clk 0:00:59.6]} 3. b4 {[%clk 0:00:58.8]} 3... d5 {[%clk 0:00:59.3]} 4. f3 {[%clk 0:00:57.9]} 4... c5 {[%clk 0:00:58.9]} 5. fxe4 {[%clk 0:00:56.9]} 5... cxb4 {[%clk 0:00:58.2]} 6. cxb4 {[%clk 0:00:55.7]} 6... Bxb4+ {[%clk 0:00:57.9]} 7. Bd2 {[%clk 0:00:54.3]} 7... Be7 {[%clk 0:00:56.7]} 8. exd5 {[%clk 0:00:52.7]} 8... Qxd5 {[%clk 0:00:54.8]} 9. e3 {[%clk 0:00:50.8]} 9... Nc6 {[%clk 0:00:52.8]} 10. Nf3 {[%clk 0:00:49.8]} 10... Qd7 {[%clk 0:00:52.2]} 11. g3 {[%clk 0:00:48.7]} 11... Nf6 {[%clk 0:00:51.9]} 12. Bg2 {[%clk 0:00:47.6]} 12... Ne4 {[%clk 0:00:51.6]} 13. Ne5 {[%clk 0:00:44.3]} 13... Nxd2 {[%clk 0:00:51.3]} 14. Nxd7 {[%clk 0:00:43]} 14... Bxd7 {[%clk 0:00:50]} 15. Qxd2 {[%clk 0:00:42.5]} 15... O-O {[%clk 0:00:49.6]} 16. d5 {[%clk 0:00:42]} 16... Bb4 {[%clk 0:00:49.2]} 17. Nc3 {[%clk 0:00:39.5]} 17... Ne5 {[%clk 0:00:45.4]} 18. Qd4 {[%clk 0:00:36.9]} 18... Bxc3+ {[%clk 0:00:39.2]} 19. Qxc3 {[%clk 0:00:36]} 19... Ng6 {[%clk 0:00:34.9]} 20. h4 {[%clk 0:00:32.7]} 20... Rad8 {[%clk 0:00:34.1]} 21. h5 {[%clk 0:00:31.8]} 21... Rc8 {[%clk 0:00:33.5]} 22. Qd3 {[%clk 0:00:29.9]} 22... Ne7 {[%clk 0:00:33.1]} 23. g4 {[%clk 0:00:28.6]} 23... a6 {[%clk 0:00:29.2]} 24. Ke2 {[%clk 0:00:28]} 24... Bb5 {[%clk 0:00:28.8]} 25. Qxb5 {[%clk 0:00:23.4]} 25... axb5 {[%clk 0:00:28.4]} 26. Rhc1 {[%clk 0:00:22.8]} 26... Rxc1 {[%clk 0:00:26.2]} 27. Rxc1 {[%clk 0:00:21.7]} 27... Nxd5 {[%clk 0:00:25.9]} 28. e4 {[%clk 0:00:20.7]} 28... Nf4+ {[%clk 0:00:24.4]} 29. Kf3 {[%clk 0:00:19.7]} 29... Nxg2 {[%clk 0:00:24.1]} 30. Kxg2 {[%clk 0:00:19.5]} 30... Rb8 {[%clk 0:00:23.5]} 31. e5 {[%clk 0:00:17.9]} 31... b4 {[%clk 0:00:23.1]} 32. g5 {[%clk 0:00:16.9]} 32... Re8 {[%clk 0:00:22.7]} 33. g6 {[%clk 0:00:15.4]} 33... Rxe5 {[%clk 0:00:21.8]} 34. gxh7+ {[%clk 0:00:14.7]} 34... Kxh7 {[%clk 0:00:21.4]} 35. Kg3 {[%clk 0:00:13]} 35... Rxh5 {[%clk 0:00:21]} 36. Kg4 {[%clk 0:00:11.9]} 36... Rh6 {[%clk 0:00:20.8]} 37. Kg5 {[%clk 0:00:10.6]} 37... Rg6+ {[%clk 0:00:20.5]} 38. Kf5 {[%clk 0:00:06.8]} 38... Rf6+ {[%clk 0:00:20.2]} 39. Ke4 {[%clk 0:00:05.5]} 39... g5 {[%clk 0:00:18.8]} 40. Ke5 {[%clk 0:00:04.3]} 40... Kg6 {[%clk 0:00:18.5]} 41. Ke4 {[%clk 0:00:02]} 41... g4 {[%clk 0:00:18.2]} 42. Rg1 {[%clk 0:00:00.4]} 42... Re6+ {[%clk 0:00:16.6]} 0-1